bitfinex/quotes_ETHUSD_20241003
["timestamp","ask_amount","ask_price","bid_price","bid_amount"]
[1727977056153,0.818,2343.1,2342.2,0.7897]
[1727977056356,4.26908,2342.5,2342.3,0.55]
[1727977056570,4.26908,2342.5,2342.3,0.62823427]
[1727977058866,4.26912,2342.4,2342.3,0.07823427]
[1727977059074,5.12294,2342.4,2342.3,0.07823427]
[1727977059285,4.26973,2342.1,2341.9,0.7621]
[1727977059873,8.53958,2342.1,2341.9,0.7621]
[1727977060079,4.26945,2342.3,2341.9,0.7621]
[1727977060383,0.7739,2342.6,2341.9,0.7621]
[1727977060384,4.26982,2342.1,2341.9,0.7621]
[1727977060687,4.26959,2342.2,2341.9,0.7621]
[1727977060844,4.26959,2342.2,2342.0,0.55]
[1727977061245,4.26967,2342.1,2342.0,0.55]
[1727977061854,4.26985,2342.0,2341.9,0.7621]
[1727977062191,4.27018,2341.9,2341.6,0.9177932]
[1727977062945,4.27039,2341.8,2341.6,0.9177932]
[1727977063181,4.27035,2341.8,2341.7,0.55]
[1727977063686,4.27006,2341.9,2341.7,0.55]
[1727977064353,4.26998,2342.0,2341.7,0.55]
[1727977064777,4.27007,2341.9,2341.7,0.55]
[1727977065089,4.26994,2342.0,2341.7,0.55]
[1727977065251,4.27003,2341.9,2341.7,0.55]
[1727977065788,0.7797,2342.3,2341.7,0.55]
[1727977065991,4.2691,2342.5,2342.1,4.26958]
[1727977066196,4.26909,2342.5,2342.2,0.55]
[1727977066358,4.26914,2342.4,2342.2,0.55]
[1727977066685,4.26914,2342.4,2342.0,4.81974]
[1727977066887,4.26914,2342.4,2342.2,0.55]
[1727977067094,4.2693,2342.3,2342.2,0.55]
[1727977067296,4.2693,2342.3,2342.0,0.55]
[1727977067454,0.8114,2342.8,2342.0,0.55]
[1727977067663,0.7641,2342.5,2341.6,0.9124932]
[1727977067861,4.27031,2341.8,2341.6,0.9124932]
[1727977068271,4.2704,2341.7,2341.6,0.9124932]
[1727977068457,4.2704,2341.7,2341.6,0.1159932]
[1727977069351,5.124471,2341.7,2341.6,0.1159932]
[1727977070192,5.124471,2341.7,2341.6,0.18914648]
[1727977073283,4.2704,2341.7,2341.6,0.73914648]
[1727977073822,4.2704,2341.7,2341.6,0.18914648]
[1727977077321,8.0898,2341.7,2341.6,0.18914648]
[1727977077535,8.0898,2341.7,2341.6,0.1159932]
[1727977080616,4.27259,2340.5,2340.1,12.53507]
[1727977080821,4.27291,2340.4,2340.1,0.8019]
[1727977081009,4.27305,2340.3,2340.2,0.07220631]
[1727977081230,4.27291,2340.4,2340.2,0.07220631]
[1727977081402,4.27295,2340.3,2340.2,0.07220631]
[1727977081601,4.27262,2340.5,2340.2,0.07220631]
[1727977081800,7.31,2341.6,2340.2,0.07220631]
[1727977081801,4.27295,2340.3,2340.2,0.07220631]
[1727977082037,4.27337,2340.1,2339.8,0.78280631]
[1727977082259,4.27337,2340.1,2339.8,2.03447994]
[1727977082404,4.27398,2339.8,2339.3,0.1159932]
[1727977082603,4.27452,2339.5,2339.3,0.1159932]
[1727977082858,4.2746,2339.4,2339.3,0.1159932]
[1727977083671,4.27442,2339.5,2339.3,0.1159932]
[1727977085055,8.54895,2339.5,2339.3,0.1159932]
[1727977085207,8.54895,2339.5,2339.4,0.55]
[1727977085416,4.27417,2339.7,2339.4,0.55]
[1727977085752,4.27376,2339.9,2339.4,4.82442]
[1727977085935,4.27376,2339.9,2339.7,0.7682]
[1727977086142,4.27386,2339.8,2339.7,1.3182]
[1727977086348,4.27405,2339.7,2339.6,0.55]
[1727977086853,4.27405,2339.7,2339.4,0.55]
[1727977087008,4.27405,2339.7,2339.4,1.12091432]
[1727977087516,4.27424,2339.6,2339.4,1.12091432]
[1727977087717,4.27424,2339.6,2339.4,0.55]
[1727977088355,4.27441,2339.5,2339.4,0.55]
[1727977089410,4.27425,2339.6,2339.4,0.55]
[1727977089711,4.27425,2339.6,2339.5,0.61132156]
[1727977090262,4.27394,2339.8,2339.5,0.61132156]
[1727977090559,4.27413,2339.7,2339.6,0.55]
[1727977090711,4.27385,2339.9,2339.6,0.55]
[1727977090923,8.54764,2339.9,2339.6,0.61129268]
[1727977091848,4.27379,2339.9,2339.6,0.61129268]
[1727977092065,4.27405,2339.7,2339.6,0.61129268]
[1727977092561,4.27386,2339.8,2339.6,0.61129268]
[1727977093058,4.27338,2340.1,2339.7,0.8043]
[1727977093358,4.27361,2340.0,2339.8,0.55]
[1727977093562,4.27338,2340.1,2339.8,0.55]
[1727977093715,4.27338,2340.1,2340.0,0.55]
[1727977093915,5.03037,2340.3,2340.0,0.55]
[1727977093916,4.27315,2340.2,2340.0,0.55]
[1727977094119,0.7992,2340.6,2340.0,4.88504362]
[1727977094120,4.2728,2340.4,2340.0,4.88504362]
[1727977094445,4.27273,2340.5,2340.2,1.3135]
[1727977094619,4.27244,2340.6,2340.2,1.3135]
[1727977094812,4.27215,2340.8,2340.4,4.27276]
[1727977095017,4.27188,2340.9,2340.5,0.61140927]
[1727977095261,0.758,2341.2,2340.7,1.3773]
[1727977095262,4.27142,2341.2,2340.7,1.3773]
[1727977095578,4.27114,2341.3,2340.9,0.55]
[1727977095720,4.27104,2341.4,2341.1,0.55]
[1727977095917,4.27087,2341.5,2341.1,0.55]
[1727977096127,4.27094,2341.4,2341.3,0.55]
[1727977096401,4.27094,2341.4,2341.3,0.61117845]
[1727977096708,4.27094,2341.4,2341.3,0.06117845]
[1727977097043,4.27195,2340.9,2340.7,0.8273]
[1727977097329,4.27195,2340.9,2340.8,0.55]
[1727977097919,4.27195,2340.9,2340.3,0.8098]
[1727977097920,4.2727,2340.5,2340.3,0.8098]
[1727977098124,8.54538,2340.5,2340.3,0.8098]
[1727977098324,4.27264,2340.5,2340.3,0.8098]
[1727977098517,4.27236,2340.7,2340.3,0.8098]
[1727977099206,4.27251,2340.6,2340.3,0.8098]
[1727977099392,4.27251,2340.6,2340.4,0.55]
[1727977099596,0.854364,2340.9,2340.4,0.55]
[1727977099793,8.54394,2340.9,2340.4,4.82273]
[1727977100041,4.27212,2340.8,2340.4,0.55]
[1727977100257,4.27167,2341.0,2340.4,0.55]
[1727977100403,4.27225,2340.7,2340.6,0.55]
[1727977100841,4.27225,2340.7,2340.6,0.61138041]
[1727977101020,5.426683,2340.7,2340.6,0.61138041]
[1727977102145,4.27225,2340.7,2340.6,0.61138041]
[1727977102306,4.27208,2340.8,2340.6,0.61138041]
[1727977103148,4.27222,2340.7,2340.6,0.61138041]
[1727977104102,3.0,2340.9,2340.6,0.61138041]
[1727977104307,8.54422,2340.8,2340.6,0.61138041]
[1727977104507,4.27204,2340.8,2340.6,0.61138041]
[1727977104765,8.54418,2340.8,2340.6,0.61138041]
[1727977105055,4.27222,2340.7,2340.6,0.61138041]
[1727977105355,4.27179,2341.0,2340.6,0.61138041]
[1727977105517,4.27186,2340.9,2340.6,0.61138041]
[1727977105726,4.27179,2341.0,2340.6,0.61138041]
[1727977105913,4.27143,2341.2,2340.6,0.61138041]
[1727977105914,4.27151,2341.1,2340.8,0.55]
[1727977106438,3.7731,2341.4,2341.0,0.55]
[1727977106439,4.27111,2341.4,2341.0,0.55]
[1727977106631,4.2712,2341.3,2341.1,0.05896025]
[1727977106833,4.2712,2341.3,2341.2,0.55]
[1727977107151,4.2712,2341.3,2341.2,0.60878361]
[1727977107358,5.125428,2341.3,2341.2,0.05878361]
[1727977107743,4.27195,2340.9,2340.7,0.8284]
[1727977108058,4.2725,2340.6,2340.3,0.8058]
[1727977108257,4.27277,2340.4,2340.3,0.8058]
[1727977108557,4.27285,2340.4,2339.9,5.07941]
[1727977108853,4.27266,2340.5,2340.0,4.27347]
[1727977109065,4.2728,2340.4,2340.0,4.27347]
[1727977109214,8.09247,2341.2,2339.9,1.313741]
[1727977109215,4.27235,2340.7,2340.2,4.27313]
[1727977109420,4.27205,2340.8,2340.5,0.55]
[1727977109620,4.27205,2340.8,2340.3,0.8058]
[1727977109621,4.27223,2340.7,2340.4,0.55]
[1727977110055,4.27206,2340.8,2340.4,4.8227]
[1727977110263,4.27237,2340.7,2340.4,0.55]
[1727977111122,4.27235,2340.7,2340.4,0.55]
[1727977111328,4.27248,2340.6,2340.4,0.55]
[1727977111965,4.27285,2340.4,2340.0,5.03042]
[1727977112526,4.27295,2340.3,2340.0,0.757]
[1727977112835,4.27323,2340.2,2340.0,0.757]
[1727977113424,0.854483,2340.6,2339.6,3.0]
[1727977113754,4.27378,2339.9,2339.7,0.7644]
[1727977113956,4.2731,2340.3,2339.7,0.7644]
[1727977114261,4.27315,2340.2,2339.8,4.27386]
[1727977115367,4.27315,2340.2,2339.9,0.05748981]
[1727977115575,4.2731,2340.3,2340.0,0.55]
[1727977115947,4.2731,2340.3,2340.2,0.55]
[1727977116347,4.2725,2340.6,2340.2,0.60740319]
[1727977116583,4.2725,2340.6,2340.2,1.38430319]
[1727977116896,4.27274,2340.5,2340.2,1.38430319]
[1727977117246,4.27285,2340.4,2340.2,1.38430319]
[1727977118156,4.27295,2340.3,2340.2,1.38430319]
[1727977118694,4.27254,2340.6,2340.2,0.60740319]
[1727977119690,4.27272,2340.5,2340.2,0.60740319]
[1727977120161,4.27279,2340.4,2340.2,0.60740319]
[1727977120488,4.27272,2340.5,2340.2,0.60740319]
[1727977120982,4.27238,2340.7,2340.4,0.55]
[1727977121351,4.27238,2340.7,2340.6,0.55]
[1727977121784,5.126824,2340.7,2340.6,0.60712226]
[1727977122001,5.126824,2340.7,2340.6,0.05712226]
[1727977122502,5.05165,2340.6,2340.1,0.55]
[1727977122712,4.27327,2340.2,2340.0,0.55]
[1727977123375,4.27296,2340.3,2340.0,0.55]
[1727977123991,4.27226,2340.7,2340.0,5.810063]
[1727977124313,4.27248,2340.6,2340.3,0.55]
[1727977124816,4.27226,2340.7,2340.2,4.82302]
[1727977124993,4.27248,2340.6,2340.2,1.3349]
[1727977125307,4.27295,2340.3,2340.0,0.55]
[1727977126510,4.27278,2340.4,2340.0,4.82343]
[1727977126915,8.54474,2340.7,2340.2,0.55]
[1727977127089,4.27211,2340.8,2340.4,4.82277]
[1727977127596,4.27224,2340.7,2340.4,0.55]
[1727977129075,4.27247,2340.6,2340.4,0.55]
[1727977129282,4.27259,2340.5,2340.4,0.55]
[1727977130396,4.27259,2340.5,2340.4,0.60707271]
[1727977131415,0.804,2340.9,2340.4,0.60707271]
[1727977131416,4.27213,2340.8,2340.4,0.60707271]
[1727977131625,8.54435,2340.8,2340.4,0.60707271]
[1727977131830,4.27222,2340.7,2340.4,0.60707271]
[1727977132423,4.27213,2340.8,2340.4,4.87983271]
[1727977132610,4.27241,2340.6,2340.4,0.60707271]
[1727977132981,4.27227,2340.7,2340.4,0.60707271]
[1727977133208,5.07603,2340.9,2340.4,0.60707271]
[1727977133396,4.27208,2340.8,2340.4,0.60707271]
[1727977133590,4.27231,2340.7,2340.4,0.60707271]
[1727977134320,8.54468,2340.7,2340.4,0.60707271]
[1727977135019,4.27231,2340.7,2340.4,0.60707271]
[1727977135578,5.206784,2340.9,2340.5,0.8013]
[1727977135800,4.27207,2340.8,2340.6,0.55]
[1727977136029,4.27222,2340.7,2340.6,0.60568074]
[1727977136181,4.27207,2340.8,2340.6,0.60568074]
[1727977136900,8.54427,2340.8,2340.6,0.60568074]
[1727977137126,4.27222,2340.7,2340.6,0.60568074]
[1727977137931,4.27207,2340.8,2340.6,0.60568074]
[1727977138335,4.27176,2341.0,2340.6,0.60568074]
[1727977138532,0.7746,2341.2,2340.8,4.82189]
[1727977138833,4.27186,2340.9,2340.7,0.55]
[1727977139139,4.27222,2340.7,2340.6,0.55]
[1727977140727,4.27222,2340.7,2340.2,5.05913]
[1727977140728,4.27285,2340.4,2340.2,0.7861]
[1727977141049,4.27295,2340.3,2339.9,11.73359]
[1727977141207,4.27315,2340.2,2339.8,5.47664267]
[1727977141403,4.27315,2340.2,2339.8,5.07573]
[1727977141800,0.797,2340.5,2339.8,5.07573]
[1727977141801,4.27332,2340.1,2339.8,0.8019]
[1727977142040,8.54716,2340.0,2339.6,4.67516984]
[1727977142240,4.27384,2339.9,2339.5,2.51450334]
[1727977142443,4.27384,2339.9,2339.5,0.7913]
[1727977142608,4.27384,2339.9,2339.5,5.06562]
[1727977143453,4.27354,2340.0,2339.6,4.27412]
[1727977143749,4.27354,2340.0,2339.5,5.06562]
[1727977143948,4.27336,2340.1,2339.7,4.27403]
[1727977144117,4.27336,2340.1,2339.8,0.55]
[1727977144306,4.27351,2340.0,2339.7,0.55]
[1727977145011,4.27369,2339.9,2339.6,0.55]
[1727977145215,4.27369,2339.9,2339.7,0.05629833]
[1727977145462,4.27386,2339.8,2339.7,0.05629833]
[1727977145627,4.27386,2339.8,2339.3,5.2226632]
[1727977145628,4.27386,2339.8,2339.4,4.27457]
[1727977145955,4.27386,2339.8,2339.5,0.05454154]
[1727977146622,4.27386,2339.8,2339.6,0.55]
[1727977147019,4.27367,2340.0,2339.7,0.05448377]
[1727977147020,4.27372,2339.9,2339.7,0.05448377]
[1727977147843,4.27386,2339.8,2339.7,0.60448377]
[1727977148719,4.782172,2339.9,2339.7,0.60448377]
[1727977148720,0.508452,2339.9,2339.7,0.60448377]
[1727977148917,0.8236,2340.5,2339.8,0.55]
[1727977149148,4.27352,2340.0,2339.8,0.55]
[1727977149458,4.27336,2340.1,2340.0,0.55]
[1727977149751,4.27336,2340.1,2340.0,0.60439713]
[1727977150753,4.27314,2340.2,2340.0,0.60439713]
[1727977150927,8.5464,2340.2,2340.0,0.60439713]
[1727977151141,4.27332,2340.1,2340.0,0.60439713]
[1727977151459,4.27332,2340.1,2340.0,0.05439713]
[1727977151460,5.04892,2340.1,2340.0,0.05439713]
[1727977151662,5.04892,2340.1,2339.4,0.7623]
[1727977151819,4.27424,2339.6,2339.5,0.05454154]
[1727977152024,4.274,2339.8,2339.5,0.05454154]
[1727977152851,4.27412,2339.7,2339.6,0.55]
[1727977153063,0.7749,2339.6,2339.3,0.1159932]
[1727977153287,4.2746,2339.4,2339.3,0.1159932]
[1727977153470,5.0495,2339.4,2339.3,0.1159932]
[1727977153675,8.0495,2339.4,2339.3,0.1159932]
[1727977153977,9.281896,2339.4,2339.3,0.1159932]
[1727977154487,4.27673,2338.3,2338.1,1.3222435]
[1727977154653,4.27673,2338.3,2338.0,2.1346435]
[1727977154847,0.768,2338.8,2338.0,0.8124]
[1727977155181,3.0,2339.1,2338.0,0.8124]
[1727977155182,4.27521,2339.1,2338.5,5.08862]
[1727977155367,5.1004,2339.4,2338.9,4.27551]
[1727977155682,4.27472,2339.4,2339.0,0.7728]
[1727977155876,4.2748,2339.3,2339.0,0.7728]
[1727977156041,4.2746,2339.4,2339.0,0.7728]
[1727977156242,0.8258,2339.6,2339.1,0.55]
[1727977156464,0.8258,2339.6,2338.8,0.7897]
[1727977156465,8.54896,2339.5,2338.9,4.82542]
[1727977156664,8.54896,2339.5,2338.8,0.7897]
[1727977156665,0.8258,2339.6,2338.8,0.7897]
[1727977156870,4.27525,2339.1,2338.8,0.7897]
[1727977157108,0.8258,2339.6,2338.8,0.7897]
[1727977157109,4.27498,2339.2,2338.8,0.7897]
[1727977157510,4.27518,2339.1,2338.8,0.7897]
[1727977157669,4.27498,2339.2,2338.8,0.7897]
[1727977157874,8.55004,2339.2,2338.9,0.55]
[1727977158382,4.27518,2339.1,2338.9,0.55]
[1727977158706,4.27515,2339.1,2338.9,0.55]
[1727977159005,4.27567,2338.9,2338.6,0.55]
[1727977159524,4.27553,2338.9,2338.6,0.55]
[1727977160317,4.27553,2338.9,2338.8,0.55]
[1727977160671,4.27553,2338.9,2338.8,0.60201499]
[1727977161475,5.210108,2338.9,2338.8,0.05201499]
[1727977161676,5.210108,2338.9,2338.2,0.8219]
[1727977161677,4.27614,2338.6,2338.2,0.8219]
[1727977161928,4.27614,2338.6,2338.3,0.05215955]
[1727977162090,5.05734,2338.6,2338.3,0.05215955]
[1727977162276,4.27614,2338.6,2338.2,4.27678]
[1727977162485,8.05684,2338.9,2338.3,4.32865]
[1727977162786,4.27589,2338.7,2338.3,4.32865]
[1727977163003,4.27589,2338.7,2338.3,0.05207]
[1727977163217,4.27589,2338.7,2338.4,0.55]
[1727977163416,4.27589,2338.7,2338.3,0.55]
[1727977163721,4.27614,2338.6,2338.4,0.05204556]
[1727977163949,4.27624,2338.5,2338.4,0.60204556]
[1727977164100,4.27624,2338.5,2338.4,0.55]
[1727977164300,4.27624,2338.5,2338.4,0.60252896]
[1727977164613,5.2120489,2338.5,2338.4,0.60252896]
[1727977164980,5.2120489,2338.5,2338.4,0.05252896]
[1727977165397,4.27614,2338.6,2338.1,4.82697]
[1727977165733,3.7812,2338.9,2338.5,4.82624]
[1727977165734,4.2756,2338.9,2338.5,4.82624]
[1727977165895,4.27553,2338.9,2338.5,0.55]
[1727977166090,4.27548,2339.0,2338.7,0.55]
[1727977166319,4.27548,2339.0,2338.8,0.05241332]
[1727977166583,4.27406,2339.7,2338.9,0.55]
[1727977166584,4.27487,2339.3,2338.9,0.55]
[1727977166787,5.06739,2339.4,2338.9,5.62149]
[1727977166986,4.27481,2339.3,2339.1,0.55]
[1727977167532,4.27481,2339.3,2339.2,0.60229771]
[1727977168830,4.27461,2339.4,2339.3,0.55]
[1727977169131,4.27397,2339.8,2339.5,0.55]
[1727977169334,4.2742,2339.7,2339.5,0.55]
[1727977169545,0.8262,2340.0,2339.6,0.05203442]
[1727977169696,4.27381,2339.9,2339.7,0.55]
[1727977169897,4.27386,2339.8,2339.5,0.55]
[1727977170112,5.09986,2340.0,2339.5,0.55]
[1727977170337,4.27389,2339.8,2339.5,0.55]
[1727977171197,8.54793,2339.8,2339.5,0.55]
[1727977171398,4.27389,2339.8,2339.5,0.55]
[1727977171991,4.2734,2340.1,2339.7,0.55]
[1727977172240,4.27325,2340.2,2339.9,0.55]
[1727977172938,4.27345,2340.1,2339.6,4.82422]
[1727977173239,4.27345,2340.1,2339.7,4.274]
[1727977173408,4.27345,2340.1,2339.8,0.55]
[1727977173992,4.27312,2340.3,2340.0,0.55]
[1727977174194,4.27309,2340.3,2340.0,0.55]
[1727977174393,4.27328,2340.2,2340.0,0.55]
[1727977175037,4.27332,2340.1,2340.0,0.55]
[1727977175450,5.127978,2340.1,2340.0,0.60191442]
[1727977175633,4.27332,2340.1,2340.0,0.60191442]
[1727977183855,4.27332,2340.1,2340.0,0.05191442]
[1727977183856,5.10412,2340.1,2340.0,0.05191442]
[1727977184215,4.27488,2339.3,2339.1,0.793]
[1727977184416,4.27488,2339.3,2338.5,4.27611]
[1727977184417,4.27454,2339.5,2338.8,0.793]
[1727977184732,4.2735,2340.0,2338.8,0.793]
[1727977184733,4.27529,2339.1,2338.8,0.793]
[1727977184919,4.2755,2339.0,2338.9,0.051279]
[1727977185352,4.2755,2339.0,2338.6,4.27605]
[1727977185568,4.2755,2339.0,2338.9,0.051279]
[1727977185858,4.2755,2339.0,2338.5,8.55222]
[1727977186318,5.03495,2339.3,2338.7,4.2758]
[1727977186664,4.2752,2339.1,2338.7,4.82585]
[1727977186822,4.27477,2339.4,2338.9,0.55]
[1727977187016,4.2748,2339.3,2338.9,4.8255]
[1727977187222,4.27496,2339.2,2339.1,0.55]
[1727977187761,4.27496,2339.2,2339.1,0.60160154]
[1727977188633,4.27478,2339.3,2339.1,0.60160154]
[1727977188823,7.27434,2339.6,2339.1,1.41720154]
[1727977189021,4.27399,2339.8,2339.4,4.82459]
[1727977189256,4.27399,2339.8,2339.4,0.55]
[1727977189423,4.27399,2339.8,2339.6,0.55]
[1727977189424,4.27414,2339.7,2339.6,0.55]
[1727977189760,4.27399,2339.8,2339.2,4.27486]
[1727977189761,4.27486,2339.3,2339.2,0.55]
[1727977190290,4.27486,2339.3,2339.2,0.60157264]
[1727977190506,4.27465,2339.4,2339.2,0.60157264]
[1727977190648,4.27444,2339.5,2339.2,0.60157264]
[1727977191660,4.27478,2339.3,2339.2,0.60157264]
[1727977193255,8.07048,2339.3,2339.2,0.05157264]
[1727977193458,4.27587,2338.7,2338.6,0.7819]
[1727977193657,4.27587,2338.7,2338.6,0.05201451]
[1727977193891,4.27516,2339.1,2338.4,0.7721]
[1727977194100,4.27577,2338.8,2338.5,0.05204342]
[1727977195194,4.27577,2338.8,2338.6,0.55]
[1727977195397,4.27587,2338.7,2338.6,0.55]
[1727977195598,4.27587,2338.7,2338.0,10.46]
[1727977195599,4.27629,2338.5,2338.1,5.09595]
[1727977195763,4.27602,2338.7,2338.1,5.09595]
[1727977196090,4.27602,2338.7,2338.3,4.27661]
[1727977196290,4.27565,2338.9,2338.3,4.27661]
[1727977196291,4.27571,2338.8,2338.5,0.8331]
[1727977196588,4.27553,2338.9,2338.5,5.10934]
[1727977196754,4.27572,2338.8,2338.5,0.8331]
[1727977196962,4.27553,2338.9,2338.5,0.8331]
[1727977197355,8.55119,2338.9,2338.6,0.55]
[1727977197553,4.27573,2338.8,2338.6,0.55]
[1727977197754,4.27587,2338.7,2338.6,0.55]
[1727977198074,4.27617,2338.6,2338.4,0.55]
[1727977198279,4.27624,2338.5,2338.4,0.55]
[1727977199661,4.27607,2338.6,2338.4,0.55]
[1727977200004,4.2759,2338.7,2338.4,0.55]
[1727977200497,7.27581,2338.8,2338.4,0.55]
[1727977200703,4.27596,2338.7,2338.4,0.55]
[1727977201062,4.27624,2338.5,2338.4,0.55]
[1727977201270,4.27624,2338.5,2338.2,0.55]
[1727977201468,4.27616,2338.6,2338.2,0.55]
[1727977201680,4.27616,2338.6,2338.2,4.82678]
[1727977201996,4.27635,2338.5,2338.2,0.55]
[1727977202302,4.27606,2338.6,2338.2,4.82677]
[1727977202468,4.27631,2338.5,2338.2,0.55]
[1727977202670,4.27661,2338.3,2338.2,0.55]
[1727977202880,4.27606,2338.6,2337.9,0.8065]
[1727977203079,8.55338,2338.3,2337.9,0.8065]
[1727977203310,4.27688,2338.2,2337.9,0.8065]
[1727977203596,4.27645,2338.4,2338.0,4.27707]
[1727977203796,0.855258,2338.4,2338.1,4.27696]
[1727977204007,0.855258,2338.4,2338.0,8.55413]
[1727977204221,0.855258,2338.4,2338.1,4.82689]
[1727977204447,4.27613,2338.6,2338.1,4.82689]
[1727977204593,3.0,2338.6,2338.3,4.82647]
[1727977205341,4.27564,2338.9,2338.4,0.05263645]
[1727977205556,4.27564,2338.9,2338.5,0.55]
[1727977205699,4.27559,2338.9,2338.5,0.55]
[1727977205903,5.206739,2338.9,2338.6,0.05246666]
[1727977206315,3.0,2338.9,2338.7,0.55]
[1727977206505,4.27569,2338.8,2338.2,0.55]
[1727977206701,4.27572,2338.8,2338.4,4.82634]
[1727977207442,3.0,2339.1,2338.7,0.55]
[1727977207642,0.3,2339.0,2338.7,0.55]
[1727977207849,4.57534,2339.0,2338.7,0.55]
[1727977208051,3.0,2338.9,2338.7,0.55]
[1727977208349,3.8218,2339.3,2338.7,4.82575]
[1727977208350,4.27522,2339.1,2338.7,4.82575]
[1727977208659,4.27469,2339.4,2338.9,4.82547]
[1727977208811,5.208034,2339.4,2338.9,4.82547]
[1727977209012,4.27493,2339.3,2338.9,4.82547]
[1727977209252,5.207964,2339.4,2339.1,0.55]
[1727977209409,0.933344,2339.4,2339.1,0.55]
[1727977209606,4.27465,2339.4,2339.1,0.55]
[1727977210147,4.27465,2339.4,2339.0,0.55]
[1727977210443,4.27465,2339.4,2338.9,5.05067]
[1727977210444,4.27534,2339.0,2338.8,0.55]
[1727977210627,0.7842,2339.5,2338.8,0.55]
[1727977210944,8.55084,2339.0,2338.8,0.55]
[1727977211147,4.2754,2339.0,2338.8,0.55]
[1727977211706,8.55089,2339.0,2338.8,0.55]
[1727977212054,4.2754,2339.0,2338.8,0.55]
[1727977212253,8.55084,2339.0,2338.8,0.55]
[1727977212541,0.855084,2338.9,2338.8,0.55]
[1727977212752,4.2754,2339.0,2338.8,0.55]
[1727977213351,4.27514,2339.2,2338.8,4.82569]
[1727977213847,4.2747,2339.4,2339.0,4.8253]
[1727977214359,0.7842,2339.5,2339.1,4.27514]
[1727977214360,8.05862,2339.5,2339.1,4.27514]
[1727977214525,4.27473,2339.4,2339.2,0.55]
[1727977214907,5.0587,2339.5,2339.0,4.82532]
[1727977215214,4.27453,2339.5,2339.2,0.8252]
[1727977215425,4.27478,2339.3,2339.0,0.55]
[1727977215624,4.27514,2339.1,2338.7,0.55]
[1727977215933,4.27533,2339.0,2338.7,0.55]
[1727977216322,5.07818,2339.3,2338.7,0.55]
[1727977216645,4.27488,2339.3,2339.0,0.55]
[1727977216844,7.27462,2339.4,2339.0,4.82532]
[1727977218647,4.27483,2339.3,2339.0,0.55]
[1727977218849,7.27462,2339.4,2339.0,0.55]
[1727977219771,4.27347,2340.1,2339.2,4.82483]
[1727977219772,4.27399,2339.8,2339.2,4.82483]
[1727977219982,4.27419,2339.7,2339.3,8.54945]
[1727977220135,4.27338,2340.1,2339.6,4.27414]
[1727977220136,4.27345,2340.1,2339.6,4.27414]
[1727977220350,4.27345,2340.1,2339.7,4.87568453]
[1727977220540,4.27362,2340.0,2339.7,0.60171453]
[1727977220935,4.2738,2339.9,2339.7,0.60171453]
[1727977221136,5.07616,2339.8,2339.7,0.05171453]
[1727977221351,4.2743,2339.6,2339.3,0.55]
[1727977221965,4.27375,2339.9,2339.6,0.55]
[1727977223071,4.27399,2339.8,2339.4,4.82456]
[1727977223377,4.27407,2339.7,2339.4,0.55]
[1727977224246,4.27453,2339.5,2339.1,5.08409]
[1727977224773,4.27433,2339.6,2339.2,4.27496]
[1727977225243,3.0,2339.6,2339.3,4.27477]
[1727977225631,4.27407,2339.7,2339.3,4.27477]
[1727977226073,3.0,2339.9,2339.2,0.55]
[1727977226328,8.503216,2340.0,2339.5,4.82426]
[1727977226558,4.27392,2339.8,2339.5,0.55]
[1727977226772,4.27392,2339.8,2339.4,4.82459]
[1727977227623,4.27377,2339.9,2339.4,4.82459]
[1727977227624,4.27368,2339.9,2339.4,4.82446]
[1727977227919,4.27368,2339.9,2339.6,0.55]
[1727977228071,3.934944,2339.9,2339.6,4.82422]
[1727977228637,8.208744,2339.9,2339.6,0.55]
[1727977229245,4.27388,2339.8,2339.6,0.55]
[1727977229443,5.5221424,2339.8,2339.6,0.55]
[1727977230777,1.2482624,2339.8,2339.6,0.55]
[1727977231888,5.5221424,2339.8,2339.6,0.55]
[1727977232112,4.27405,2339.7,2339.3,4.27473]
[1727977232278,5.5221624,2339.8,2339.4,4.82458]
[1727977232481,4.27414,2339.7,2339.4,0.55]
[1727977232975,4.27484,2339.3,2338.5,4.27622]
[1727977233318,4.2754,2339.0,2338.5,5.02732]
[1727977233910,4.27518,2339.1,2338.6,4.27598]
[1727977234121,4.27539,2339.0,2338.5,5.02727]
[1727977234525,4.27539,2339.0,2338.7,0.55]
[1727977234733,4.27539,2339.0,2338.6,4.27605]
[1727977235302,5.1731954,2339.0,2338.7,0.05163207]
[1727977236826,0.8978054,2339.0,2338.7,0.05163207]
[1727977237228,0.427484,2339.2,2338.7,4.32750207]
[1727977237430,7.27496,2339.2,2338.7,4.32750207]
[1727977237926,7.27496,2339.2,2338.8,4.27568]
[1727977238232,4.27527,2339.1,2338.9,0.05157426]
[1727977238402,4.27527,2339.1,2338.7,4.27587]
[1727977238606,4.27527,2339.1,2339.0,0.05154536]
[1727977238899,5.430293,2339.1,2339.0,0.05154536]
[1727977239100,3.0,2339.3,2339.0,0.05154536]
[1727977239330,4.2747,2339.4,2339.0,0.05154536]
[1727977239919,5.10284,2339.5,2339.1,4.82507]
[1727977240350,5.10284,2339.5,2339.2,0.05148757]
[1727977241461,4.27388,2339.8,2339.5,0.55]
[1727977241677,4.27417,2339.7,2339.5,0.55]
[1727977241965,4.27417,2339.7,2339.6,0.051372]
[1727977242733,4.27499,2339.2,2338.8,5.05993]